bitfinex/quotes_ETHUSD_20220220
["timestamp","ask_amount","ask_price","bid_price","bid_amount"]
[1645353428925,1.13317185,2642.7,2642.1,7.32]
[1645353429124,1.13317185,2642.7,2641.9,1.08150679]
[1645353429324,3.5,2642.6,2641.8,0.13311082]
[1645353429590,0.94745,2642.4,2641.6,7.32]
[1645353429787,0.25,2642.0,2641.6,7.32121893]
[1645353430586,0.25,2642.0,2641.6,7.32]
[1645353430587,1.39556189,2642.0,2641.6,7.32]
[1645353430981,1.39556189,2642.0,2641.6,7.32121893]
[1645353431183,0.94766,2641.9,2641.6,7.32121893]
[1645353431384,0.454,2641.8,2641.6,7.32121893]
[1645353431785,0.454,2641.8,2641.6,7.32]
[1645353431786,3.5,2641.7,2641.6,7.32]
[1645353431982,3.5,2641.7,2641.6,7.32120231]
[1645353432385,5.39555,2641.7,2641.6,7.32120231]
[1645353432983,1.89555,2641.7,2641.6,7.32]
[1645353433240,2.34955,2641.7,2641.6,7.32]
[1645353434052,3.34955,2641.7,2641.6,7.32]
[1645353435348,3.35177001,2641.7,2641.6,7.32]
[1645353436344,8.35064005,2641.7,2641.6,7.32]
[1645353436548,11.69573463,2641.7,2641.6,1.63274]
[1645353437173,17.5,2641.6,2640.6,0.00291936]
[1645353437392,4.99887004,2640.9,2640.6,7.32291936]
[1645353437585,1.13570629,2641.4,2640.2,0.00291936]
[1645353437586,21.0,2640.6,2640.2,0.00291936]
[1645353437780,0.8410443,2640.4,2640.3,0.00291936]
[1645353437986,1.2950443,2640.4,2639.8,0.00291936]
[1645353438278,1.2950443,2640.4,2639.6,0.00291936]
[1645353438279,37.99887004,2640.3,2639.6,0.00291936]
[1645353438475,4.99887004,2640.1,2639.6,0.00291936]
[1645353438776,1.40235,2640.2,2639.6,0.00291936]
[1645353438777,0.704,2640.0,2639.6,0.00291936]
[1645353438978,0.454,2639.9,2639.6,0.00291936]
[1645353439177,0.454,2639.9,2639.5,7.32]
[1645353439376,0.454,2639.9,2639.4,0.00291936]
[1645353439775,1.454,2639.9,2639.4,0.00291936]
[1645353439979,1.454,2639.9,2638.8,0.00291936]
[1645353440177,4.954,2639.9,2638.8,0.00291936]
[1645353440379,0.85256011,2639.6,2638.9,0.99892242]
[1645353440579,0.85256011,2639.6,2639.0,0.00291936]
[1645353440825,0.25,2639.4,2639.0,0.00291936]
[1645353441426,0.25,2639.4,2638.8,0.00291936]
[1645353441622,0.25,2639.4,2638.9,0.1894]
[1645353441823,0.25,2639.4,2638.6,0.19231936]
[1645353442023,0.25,2639.4,2638.7,0.00291936]
[1645353442225,0.25,2639.4,2638.8,0.1894]
[1645353442723,0.25,2639.4,2639.0,0.0014539]
[1645353443135,0.25,2639.4,2639.0,0.00437326]
[1645353443825,0.25,2639.4,2639.0,0.00291936]
[1645353444023,0.25,2639.4,2639.1,0.00145384]
[1645353444773,1.65256,2639.4,2639.1,0.00145384]
[1645353444968,3.5,2639.3,2638.6,0.00291936]
[1645353445370,3.5,2639.3,2638.2,0.00291936]
[1645353445571,1.08183552,2639.0,2638.3,1.19292657]
[1645353445777,1.08183552,2639.0,2638.4,0.00291936]
[1645353445969,0.25,2638.7,2638.4,0.00291936]
[1645353446172,1.08183552,2639.0,2638.9,0.5]
[1645353446173,1.53583552,2639.0,2638.9,0.5]
[1645353446870,5.03583552,2639.0,2638.9,0.413221]
[1645353447176,1.06831285,2638.4,2638.3,0.04092649]
[1645353447374,1.52231285,2638.4,2638.3,0.04092649]
[1645353447570,16.5,2638.3,2637.8,0.00291936]
[1645353447775,3.954,2638.2,2637.6,0.00291936]
[1645353447972,0.29807,2638.1,2637.1,0.00291936]
[1645353448231,1.0769296,2637.6,2637.1,0.00291936]
[1645353448436,1.0769296,2637.6,2636.9,0.00291936]
[1645353448627,1.0769296,2637.6,2636.4,0.5]
[1645353448628,0.454,2637.5,2636.5,0.00291936]
[1645353448829,0.25,2637.4,2636.5,0.00291936]
[1645353449025,0.704,2637.4,2636.5,0.00291936]
[1645353449431,3.5,2637.3,2636.5,0.00291936]
[1645353449629,1.704,2637.4,2636.8,1.13254229]
[1645353449828,1.704,2637.4,2636.9,0.00291936]
[1645353451629,1.704,2637.4,2636.4,0.00291936]
[1645353451829,1.704,2637.4,2636.4,1.61489459]
[1645353451830,0.704,2637.4,2636.4,1.61489459]
[1645353452083,0.25,2637.4,2636.4,13.41439459]
[1645353452278,0.25,2637.4,2636.5,15.11]
[1645353452479,0.25,2637.4,2636.8,0.00144784]
[1645353452876,0.25,2637.4,2637.2,1.07579406]
[1645353453683,0.25,2637.4,2637.2,1.07724168]
[1645353454576,0.25,2637.4,2637.2,1.07579406]
[1645353454776,0.25,2637.4,2637.2,1.07724168]
[1645353455829,0.25,2637.4,2637.2,1.07579406]
[1645353456029,0.25,2637.4,2637.2,0.00144762]
[1645353456932,0.25,2637.4,2636.7,0.00291936]
[1645353457129,0.25,2637.4,2637.0,1.04498164]
[1645353457428,0.25,2637.4,2637.2,0.00144762]
[1645353458234,0.25,2637.4,2636.7,0.00291936]
[1645353458431,0.25,2637.4,2637.2,0.00144762]
[1645353459500,0.25,2637.4,2637.0,0.9034757]
[1645353459684,0.25,2637.4,2637.2,0.00144762]
[1645353460684,0.25,2637.4,2637.1,0.00291936]
[1645353460886,0.25,2637.4,2637.2,0.00112191]
[1645353461786,0.25,2637.4,2637.1,0.00291936]
[1645353461986,0.25,2637.4,2637.2,0.00112191]
[1645353462385,3.75,2637.4,2637.2,0.00112191]
[1645353462786,0.25,2637.4,2637.2,0.00112191]
[1645353462985,0.25,2637.4,2636.8,1.15638783]
[1645353463226,3.75,2637.4,2637.2,0.00112191]
[1645353464136,3.75,2637.4,2636.9,0.00291936]
[1645353464534,3.75,2637.4,2637.2,0.00112191]
[1645353464734,40.0,2637.2,2636.8,0.00448831]
[1645353464930,4.99887004,2636.9,2636.8,0.00448831]
[1645353465136,9.00207004,2636.9,2636.8,0.00448831]
[1645353465329,30.5,2636.8,2635.7,3.02646205]
[1645353465534,0.25,2636.5,2635.7,3.02646205]
[1645353465732,1.3330396,2636.4,2635.7,4.02044853]
[1645353466131,1.12969884,2636.6,2635.7,4.02044853]
[1645353466431,0.94976,2636.3,2635.7,4.02044853]
[1645353466634,3.5,2636.2,2635.7,3.02646205]
[1645353466835,3.954,2636.2,2635.7,3.02646205]
[1645353467073,1.0,2636.1,2634.9,0.1895]
[1645353467273,0.25,2635.8,2635.0,1.61285087]
[1645353467474,0.704,2635.8,2635.0,1.61285087]
[1645353467673,0.704,2635.8,2635.4,0.83742028]
[1645353468472,3.5,2635.7,2635.4,0.83742028]
[1645353468676,0.704,2635.8,2635.4,0.83742028]
[1645353469876,1.0,2636.0,2635.8,1.408]
[1645353470277,4.5,2636.0,2635.8,1.408]
[1645353470477,4.5,2636.0,2635.8,1.40943436]
[1645353470722,1.0,2636.0,2635.8,1.40943436]
[1645353470922,0.704,2636.1,2635.8,2.51180757]
[1645353471122,3.5,2636.0,2635.8,2.51180757]
[1645353471323,3.5,2636.0,2635.8,1.408]
[1645353471523,0.704,2636.1,2635.8,1.408]
[1645353471729,0.25,2636.1,2635.8,1.40943433]
[1645353471930,0.25,2636.1,2635.8,1.70943433]
[1645353472123,0.25,2636.1,2635.8,1.40943433]
[1645353472325,0.25,2636.1,2635.9,1.05232735]
[1645353472725,0.25,2636.1,2635.9,1.35232735]
[1645353472927,0.25,2636.6,2635.9,1.65232735]
[1645353472928,0.25,2636.2,2635.9,1.65232735]
[1645353473127,3.5,2637.4,2635.9,1.65232735]
[1645353473323,0.25,2637.2,2635.9,13.26232735]
[1645353473528,0.25,2637.2,2636.0,6.61235879]
[1645353473728,0.25,2637.2,2636.1,11.91]
[1645353473925,3.5,2638.0,2636.4,0.9488417]
[1645353474126,3.5,2638.0,2636.6,11.61]
[1645353474327,0.25508914,2638.3,2636.6,11.61]
[1645353474581,0.25508914,2638.3,2636.7,0.00426797]
[1645353474774,0.25508914,2638.3,2636.7,0.30426797]
[1645353474975,0.25508914,2638.3,2638.1,1.18455048]
[1645353475180,0.55757345,2639.3,2638.1,1.18455048]
[1645353475181,3.5,2638.7,2638.1,1.18455048]
[1645353475375,4.99887004,2640.0,2638.1,1.18455048]
[1645353475376,3.5,2639.0,2638.1,1.18455048]
[1645353475576,0.25,2639.1,2638.1,1.18455048]
[1645353475778,0.454,2639.5,2638.1,1.18455048]
[1645353475981,0.68833258,2639.4,2638.1,1.78455048]
[1645353476181,0.68833258,2639.4,2639.1,1.04966589]
[1645353476383,0.49883016,2639.2,2638.2,3.5]
[1645353476679,0.68833258,2639.4,2637.9,5.39666]
[1645353476878,0.68833258,2639.4,2637.7,2.8405]
[1645353477279,0.68833258,2639.4,2637.7,1.09619347]
[1645353477280,0.87255268,2638.5,2637.7,1.09619347]
[1645353477480,3.5,2638.4,2637.7,1.09619347]
[1645353477878,1.0,2638.3,2637.7,1.09619347]
[1645353478077,3.5,2638.2,2637.7,1.09619347]
[1645353478326,3.5,2638.2,2637.0,2.7212]
[1645353478327,1.0,2638.1,2637.0,2.7212]
[1645353478526,3.5,2638.0,2636.9,0.5]
[1645353479734,3.5,2638.0,2637.2,0.91045293]
[1645353479735,4.52757183,2638.0,2637.2,0.91045293]
[1645353479926,0.94911,2637.9,2637.2,0.91045293]
[1645353480125,3.5,2637.8,2637.2,0.91045293]
[1645353480727,1.0,2637.7,2636.9,0.5]
[1645353480935,4.99887004,2637.4,2636.9,0.5]
[1645353481128,0.704,2637.3,2636.6,0.3694]
[1645353481328,0.94946,2637.1,2636.6,0.3694]
[1645353481526,0.94946,2637.1,2636.7,0.00114674]
[1645353481727,0.454,2637.0,2636.7,0.00114674]
[1645353481984,0.454,2637.0,2636.9,0.91857054]
[1645353483176,0.25,2637.3,2636.9,0.91857054]
[1645353484983,0.25,2637.7,2637.0,0.1895]
[1645353485185,0.68833258,2637.9,2637.1,11.61]
[1645353485375,0.68833258,2637.9,2637.2,13.41153967]
[1645353485575,0.68833258,2637.9,2637.2,11.7995]
[1645353485821,0.5218,2638.4,2637.3,7.61651289]
[1645353486021,0.5218,2638.4,2637.4,2.08656]
[1645353486222,0.5218,2638.4,2637.4,14.6450773]
[1645353486420,0.5218,2638.4,2637.4,14.9450773]
[1645353486620,0.5218,2638.4,2637.4,15.2450773]
[1645353487024,0.5218,2638.4,2637.4,22.5650773]
[1645353487424,0.5218,2638.4,2638.3,1.06990376]
[1645353487727,0.2718,2638.4,2638.3,1.06990376]
[1645353489124,0.25,2638.6,2638.3,1.06990376]
[1645353489495,0.25,2638.6,2638.3,13.27990376]
[1645353489678,0.25,2638.6,2638.3,12.67990376]
[1645353490080,0.25,2638.6,2638.3,1.06990376]
[1645353491982,0.25,2638.6,2638.3,4.76990376]
[1645353493923,0.25,2639.2,2638.3,4.76990376]
[1645353494131,0.25,2639.2,2638.3,5.36990376]
[1645353494528,0.25,2639.2,2638.4,11.61]
[1645353494726,0.25,2639.8,2638.4,12.064]
[1645353494924,0.25,2639.8,2638.4,15.564]
[1645353495127,0.25,2639.8,2639.6,0.9750636]
[1645353495325,0.00893428,2640.0,2639.6,0.9750636]
[1645353495530,0.97443687,2640.3,2639.6,0.9750636]
[1645353496126,0.97443687,2640.3,2638.6,7.8388]
[1645353496327,0.97443687,2640.3,2638.6,4.1]
[1645353496528,0.97443687,2640.3,2638.6,3.5]
[1645353496984,7.86994691,2640.3,2638.6,3.5]
[1645353497176,7.86994691,2640.3,2639.4,1.1362152]
[1645353497177,2.87107687,2640.3,2639.4,1.1362152]
[1645353497376,1.94829,2640.2,2639.4,1.1362152]
[1645353498182,2.03440616,2640.2,2639.4,1.1362152]
[1645353499277,3.5,2640.1,2638.5,3.0417]
[1645353499479,0.94847,2639.7,2638.3,0.1894]
[1645353499678,3.5,2639.6,2638.3,0.1894]
[1645353499878,3.5,2639.6,2638.2,0.1894]
[1645353500283,1.0,2639.5,2638.3,1.10564062]
[1645353500481,3.954,2639.4,2638.3,1.10564062]
[1645353500743,0.9486,2639.3,2638.1,0.00298983]
[1645353500934,3.954,2639.2,2638.1,0.00298983]
[1645353501332,1.0,2639.1,2638.1,0.00298983]
[1645353501533,3.954,2639.0,2638.1,0.00298983]
[1645353501737,3.954,2639.0,2638.4,0.89699345]
[1645353503834,3.5,2638.9,2638.4,0.89699345]
[1645353504037,3.5,2638.9,2637.5,2.8002]
[1645353504038,5.90276,2638.9,2637.5,2.8002]
[1645353504336,5.98887616,2638.9,2637.4,2.7387]
[1645353504771,5.98887616,2638.9,2638.4,3.7]
[1645353505975,2.40276,2638.9,2638.4,3.7]
[1645353506175,2.40276,2638.9,2638.4,4.73101323]
[1645353506379,1.454,2638.9,2638.4,4.73101323]
[1645353506575,1.0,2638.9,2638.4,4.73101323]
[1645353506775,4.5,2639.1,2638.4,4.73101323]
[1645353506977,3.5,2639.1,2638.4,4.73101323]
[1645353507177,1.0,2639.0,2638.4,4.73101323]
[1645353507379,1.0,2639.2,2638.4,4.73101323]
[1645353507682,1.0,2639.2,2638.8,1.03958223]
[1645353508336,0.25,2639.4,2638.8,1.03958223]
[1645353508525,3.5,2639.8,2638.8,1.03958223]
[1645353509130,1.12152746,2639.5,2638.8,1.03958223]
[1645353509330,3.5,2639.8,2638.8,1.03958223]
[1645353509535,4.99887004,2639.2,2638.4,3.7]
[1645353509736,0.94884,2639.0,2638.4,3.7]
[1645353509928,3.954,2638.9,2638.4,3.15918045]
[1645353510127,4.04011616,2638.9,2638.4,3.15918045]
[1645353510327,1.08611616,2638.8,2638.4,3.15918045]
[1645353510529,0.454,2638.7,2638.4,3.15918045]
[1645353511827,1.02118117,2638.6,2638.4,3.15918045]
[1645353512075,0.454,2638.5,2638.4,3.15918045]
[1645353512477,3.5,2638.9,2638.4,3.15918045]
[1645353512676,2.40284,2639.0,2638.4,3.15918045]
[1645353513480,2.40284,2639.0,2638.5,1.08864853]
[1645353513682,2.48895616,2639.0,2638.4,3.15918045]
[1645353513875,5.98895616,2639.0,2638.4,3.15918045]
[1645353514077,5.90284,2639.0,2638.4,3.15918045]
[1645353514279,6.20284,2639.0,2638.4,3.15918045]
[1645353514577,6.20284,2639.0,2638.4,3.15918033]
[1645353514777,5.90284,2639.0,2638.4,3.15918033]
[1645353514981,0.87466472,2638.9,2638.4,3.15918033]
[1645353515180,4.99887004,2638.7,2638.4,3.15918033]
[1645353515377,0.94897,2638.5,2638.4,3.15918033]
[1645353515579,4.90297,2638.5,2638.4,3.15918033]
[1645353515829,2.40297,2638.5,2638.4,3.15918033]
[1645353516037,0.454,2638.5,2638.4,3.15918033]
[1645353516228,1.0,2638.9,2638.4,3.15918033]
[1645353516428,0.45908914,2639.1,2638.4,3.15918033]
[1645353516629,3.95908914,2639.1,2638.4,3.15918033]
[1645353516827,0.94877,2638.9,2638.4,3.15918033]
[1645353519231,1.03488616,2638.9,2638.4,3.15918033]
[1645353519507,4.44877,2638.9,2638.4,3.15918033]
[1645353519893,1.0,2638.8,2638.4,3.15918033]
[1645353521790,3.00870558,2638.9,2638.4,3.15918033]
[1645353522594,3.09482174,2638.9,2638.4,3.15918033]
[1645353522796,4.99887004,2638.8,2638.4,3.15918033]
[1645353522996,0.454,2638.7,2638.4,3.15918033]
[1645353523235,1.84011616,2638.7,2638.4,3.15918033]
[1645353523436,0.08611616,2638.6,2638.4,3.15918033]
[1645353523636,0.454,2638.5,2638.4,3.15918033]
[1645353523840,2.55860281,2638.5,2638.4,3.15918033]
[1645353524139,1.54011616,2638.5,2638.4,3.15918033]
[1645353524339,0.54011616,2638.5,2638.4,3.15918033]
[1645353525037,0.08611616,2638.5,2638.4,3.15918033]
[1645353525538,0.54011616,2638.5,2638.4,3.15918033]
[1645353527270,1.47657267,2638.5,2638.4,3.15918033]
[1645353528875,0.54011616,2638.5,2638.4,3.15918033]
[1645353529971,1.4322407,2638.5,2638.4,3.15918033]
[1645353530472,2.4322407,2638.5,2638.4,3.15918033]
[1645353530735,1.4322407,2638.5,2638.4,3.15918033]
[1645353531131,0.54011616,2638.5,2638.4,3.15918033]
[1645353532432,0.54011616,2638.5,2638.4,1.31878117]
[1645353532833,0.54011616,2638.5,2637.4,0.02606507]
[1645353532834,20.5,2638.4,2637.4,0.02606507]
[1645353533035,0.94907,2638.2,2637.4,0.02606507]
[1645353533234,1.40307,2638.2,2637.4,0.02606507]
[1645353533840,1.40307,2638.2,2637.6,1.1201249]
[1645353534049,2.89814,2638.3,2637.6,1.1201249]
[1645353534050,1.0,2638.3,2637.6,1.1201249]
[1645353534240,0.08611616,2638.5,2637.6,1.1201249]
[1645353534489,3.122,2638.7,2637.6,1.1201249]
[1645353534690,0.25,2638.7,2637.7,3.5]
[1645353534892,0.25,2638.7,2637.6,1.1201249]
[1645353535093,0.25,2638.7,2638.4,0.97775423]
[1645353535295,0.25,2638.7,2637.4,0.02321394]
[1645353536294,0.9213663,2638.4,2637.6,1.05570516]
[1645353536497,0.25,2638.7,2637.6,1.05570516]
[1645353536700,0.25,2638.7,2637.7,0.1895]
[1645353536701,1.25,2638.7,2637.7,0.1895]
[1645353536894,4.44888,2638.6,2637.6,1.05570516]
[1645353537294,1.0,2638.5,2637.6,1.05570516]
[1645353537600,1.0,2638.5,2637.0,0.1895]
[1645353537601,1.0,2638.5,2638.0,1.04338787]
[1645353537795,1.25,2638.7,2638.0,1.04338787]
[1645353539032,3.5,2638.6,2638.0,1.04338787]
[1645353539238,0.25,2638.7,2638.0,1.04338787]
[1645353539435,0.25,2638.7,2638.0,4.74338787]
[1645353539829,1.25,2638.7,2638.0,4.74338787]
[1645353540433,0.25,2638.7,2638.0,4.74338787]
[1645353540829,1.0,2638.7,2638.0,3.7]
[1645353542282,3.5,2638.8,2638.3,1.01229814]
[1645353542677,1.0,2638.7,2638.3,1.01229814]
[1645353543282,1.0,2638.7,2638.0,3.7]
[1645353543483,0.94892,2638.5,2638.0,3.7]
[1645353543681,4.1417,2638.4,2638.0,3.7]
[1645353544081,1.0,2638.3,2638.0,3.7]
[1645353544282,5.02243517,2638.2,2638.0,3.7]
[1645353544485,3.5,2638.1,2638.0,3.7]
[1645353544683,4.954,2638.1,2638.0,3.7]
[1645353544982,5.04011616,2638.1,2638.0,3.7]
[1645353545582,16.0,2638.0,2637.3,0.02360559]
[1645353545832,0.94922,2637.8,2637.3,0.02360559]
[1645353546030,3.5,2637.7,2637.3,0.02360559]
[1645353546434,3.5,2637.7,2636.7,0.00143387]
[1645353546631,0.86848072,2637.5,2636.7,1.14558076]
[1645353546832,4.36848072,2637.5,2636.7,1.14558076]
[1645353547037,4.36848072,2637.5,2636.7,1.14414689]
[1645353547431,3.5,2637.5,2636.7,1.14558076]
[1645353547632,0.454,2637.6,2636.7,1.14558076]
[1645353547830,3.5,2637.5,2636.7,1.14558076]
[1645353548035,0.94933,2637.4,2636.7,1.14558076]
[1645353548236,3.5,2637.3,2636.7,1.14414689]
[1645353548435,0.94933,2637.4,2636.7,1.14414689]
[1645353548638,3.5,2637.3,2636.7,1.14558076]
[1645353549035,0.94933,2637.4,2636.7,1.14558076]
[1645353549237,3.5,2637.5,2636.7,1.14558076]
[1645353549484,3.5,2637.5,2636.7,1.14414689]
[1645353549880,3.5,2637.5,2636.7,1.14558076]
[1645353550078,1.0,2637.4,2636.7,1.14558076]
[1645353550478,3.5,2637.3,2636.7,1.14558076]
[1645353550680,3.5,2637.5,2636.7,1.14414689]
[1645353550878,1.0,2637.4,2636.2,7.4445]
[1645353551080,1.0,2637.4,2636.7,0.00111125]
[1645353551081,3.5,2637.3,2636.7,0.00111125]
[1645353551280,1.0,2637.2,2636.7,0.00111125]
[1645353551481,1.0,2637.2,2636.7,3.70111125]
[1645353551685,3.954,2637.1,2636.7,3.70111125]
[1645353551884,1.0,2637.0,2636.7,3.7]
[1645353552083,3.954,2636.9,2636.7,3.2763036]
[1645353552296,4.5,2636.8,2636.7,3.2763036]
[1645353552483,4.5,2636.8,2636.7,3.27741485]
[1645353553087,4.5,2636.8,2636.7,3.2763036]
[1645353553338,1.0,2636.8,2636.7,3.2763036]
[1645353553832,0.454,2636.9,2636.7,3.2763036]
[1645353553833,1.40351,2636.9,2636.7,3.2763036]
[1645353554237,0.454,2636.9,2636.7,3.2763036]
[1645353554434,1.454,2636.9,2636.7,3.2763036]
[1645353554636,1.454,2636.9,2636.7,3.27741485]
[1645353554835,0.454,2636.9,2636.7,3.27741485]
[1645353555434,1.454,2636.9,2636.7,3.2763036]
[1645353555835,0.454,2636.9,2636.7,3.27757579]
[1645353556634,0.454,2636.9,2636.7,3.2763036]
[1645353557075,0.454,2636.9,2636.7,4.13738719]
[1645353557274,0.454,2636.9,2636.7,3.27757579]
[1645353557873,0.454,2636.9,2636.7,3.2763036]
[1645353558073,0.454,2636.9,2636.7,3.27757579]
[1645353559076,0.454,2636.9,2636.7,3.2763036]
[1645353559480,0.25,2637.0,2636.7,3.27745123]
[1645353560381,0.25,2637.0,2636.7,3.2763036]
[1645353560579,0.25,2637.0,2636.7,3.27745123]
[1645353561523,0.25,2637.0,2636.7,3.2763036]
[1645353561725,0.25,2637.0,2636.7,3.27745123]
[1645353562730,0.25,2637.0,2636.7,3.2763036]
[1645353563126,0.25,2637.0,2636.7,3.27747926]
[1645353563731,0.25,2637.0,2636.9,1.10990626]
[1645353565390,0.25,2637.6,2636.9,1.10990626]
[1645353565590,0.25,2637.4,2636.9,1.12238039]
[1645353568826,0.25,2637.4,2636.9,12.73238039]
[1645353570231,0.25,2637.4,2636.9,13.68112069]
[1645353571227,0.25,2637.4,2636.9,18.68112069]
[1645353573280,0.25,2637.4,2636.9,17.73238039]
[1645353573477,0.25,2637.4,2636.9,13.03238039]
[1645353574076,0.25,2637.4,2636.9,13.01990626]
[1645353574278,0.25,2637.4,2637.3,1.00399247]
[1645353582886,0.25,2638.2,2637.3,1.00399247]
[1645353583088,0.59317445,2638.3,2637.4,0.9486]
[1645353583343,0.59317445,2638.3,2637.4,18.6126]
[1645353583836,0.59317445,2638.3,2637.4,13.6126]
[1645353584640,0.59317445,2638.3,2638.2,0.90207723]
[1645353585036,0.59317445,2638.3,2638.2,0.80207723]
[1645353585237,0.25,2638.7,2638.2,0.80207723]
[1645353585438,0.25,2638.7,2637.4,16.8586]
[1645353585439,3.5,2638.9,2637.6,11.61]
[1645353585637,0.1895,2638.8,2637.6,11.61]
[1645353586243,1.1895,2638.8,2637.6,11.61]
[1645353586439,3.5,2638.7,2637.6,11.61]
[1645353586639,3.5,2638.7,2638.1,1.15299787]
[1645353586842,3.6895,2639.0,2638.1,1.15299787]
[1645353587280,1.0,2638.9,2638.1,1.15299787]
[1645353587479,3.6877,2638.8,2638.1,1.15299787]
[1645353587677,0.1877,2638.8,2638.1,1.15299787]
[1645353588078,0.186,2639.0,2638.5,0.98573651]
[1645353588678,4.68928914,2639.1,2638.5,0.98573651]
[1645353589079,4.7754053,2639.1,2638.5,0.98573651]
[1645353589381,0.18928914,2639.1,2638.5,0.98573651]
[1645353589581,0.00508914,2639.1,2638.5,0.98573651]
[1645353595878,0.00508914,2639.1,2638.5,4.68573651]
[1645353598532,2.60007445,2639.4,2638.5,4.68573651]
[1645353598731,0.84317445,2639.4,2638.5,4.68573651]
[1645353598931,0.84317445,2639.4,2638.5,16.29573651]
[1645353599135,0.84317445,2639.4,2638.5,16.59573651]
[1645353599433,0.84317445,2639.4,2639.2,1.00757648]
[1645353599630,2.9976,2639.8,2639.2,1.00757648]
[1645353599832,0.1894,2639.9,2639.2,1.00757648]
[1645353600032,3.5,2640.0,2639.2,1.00757648]
[1645353600230,3.50764536,2640.0,2639.2,1.00757648]
[1645353600629,3.50764536,2640.0,2639.8,1.03126625]
[1645353600830,0.00764536,2640.0,2639.8,1.03126625]
[1645353601034,7.32,2640.1,2638.7,11.61]
[1645353601229,3.5,2640.0,2638.7,11.61]
[1645353601629,3.5,2640.0,2639.3,0.94802]
[1645353602085,8.46980656,2640.1,2639.3,2.08414064]
[1645353602285,1.0,2640.0,2639.3,2.08414064]
[1645353602786,7.32,2640.1,2639.3,2.08414064]
[1645353602983,0.00763563,2640.2,2639.3,2.08414064]
[1645353603382,0.00763563,2640.2,2640.0,1.15310179]
[1645353603584,0.1844,2640.6,2640.0,1.15310179]
[1645353603787,0.00935392,2640.3,2640.0,1.15310179]
[1645353604786,1.1844,2640.6,2640.0,1.15310179]
[1645353604985,0.00235292,2640.5,2640.0,1.15310179]
[1645353605187,3.50235292,2640.5,2640.0,1.15310179]
[1645353605389,1.0,2640.4,2640.0,1.15310179]
[1645353605586,1.0,2640.4,2639.4,5.0678]
[1645353605835,0.00235292,2640.5,2639.2,12.8322]
[1645353606034,3.5,2640.5,2639.2,12.8322]
[1645353606333,1.00941121,2640.4,2639.2,1.2222]
[1645353606534,2.17055014,2640.4,2639.6,0.83595419]
[1645353606734,2.17055014,2640.4,2639.2,1.2222]
[1645353606735,3.5,2640.3,2639.2,1.2222]
[1645353606937,1.0,2640.2,2639.2,1.2222]
[1645353607142,3.5,2640.1,2638.7,0.1894]
[1645353607336,1.1894,2640.0,2638.4,2.7781]
[1645353607539,3.954,2639.9,2638.4,2.7781]
[1645353607735,0.1894,2639.8,2638.4,2.7781]
[1645353607936,1.1894,2639.8,2638.6,0.93725758]
[1645353608135,3.5,2639.7,2638.4,2.7781]
[1645353608439,1.454,2639.6,2638.4,2.7781]
[1645353608634,3.5,2639.5,2638.4,2.7781]
[1645353608834,1.0,2639.4,2638.3,3.2699]
[1645353609034,3.5,2639.3,2638.2,2.998]
[1645353609235,0.92864466,2639.2,2638.5,0.86536829]
[1645353609686,3.5,2639.1,2638.5,0.86536829]
[1645353609882,0.92864466,2639.2,2638.5,0.86536829]
[1645353610283,3.5,2639.1,2638.5,0.86536829]
[1645353610483,0.92864466,2639.2,2638.5,0.86536829]
[1645353611083,3.5,2639.5,2638.5,0.86536829]
[1645353611286,1.0,2639.4,2638.5,0.86536829]
[1645353611485,3.5,2639.3,2638.5,0.86536829]
[1645353611885,3.5,2639.5,2638.5,0.86536829]
[1645353612086,3.6877,2639.5,2638.5,0.86536829]
[1645353612294,2.15827628,2639.4,2638.5,0.86536829]
[1645353612488,3.5,2639.3,2638.5,0.86536829]
[1645353613334,3.5,2639.3,2638.4,3.7]
[1645353613535,1.454,2639.2,2638.4,3.7]
[1645353613732,3.5,2639.1,2638.4,3.7]
[1645353613930,0.454,2639.0,2638.4,3.7]
[1645353614137,3.6811,2638.9,2638.4,3.7]
[1645353614333,1.0,2638.8,2638.4,3.7]
[1645353614539,3.5,2638.7,2638.4,4.74394525]
[1645353614934,1.0,2638.6,2638.4,4.74394525]
[1645353615130,1.0,2638.6,2638.4,3.7]
[1645353615331,1.0,2638.7,2638.4,3.7]
[1645353616532,3.5,2638.6,2638.4,3.7]
[1645353616732,3.5,2638.8,2638.4,3.7]
[1645353617180,1.0,2638.7,2638.4,3.7]
[1645353617782,3.5,2638.6,2638.4,3.7]
[1645353617985,3.5,2638.9,2638.4,3.7]
[1645353618181,1.0,2638.8,2638.4,3.7]
[1645353618384,3.5,2638.7,2638.4,3.7]
[1645353618783,1.0,2638.6,2638.4,3.7]
[1645353619182,1.0,2638.8,2638.4,3.7]
[1645353619685,3.5,2638.7,2638.4,3.7]
[1645353619890,1.0,2638.6,2638.4,3.7]
[1645353620839,0.94879,2638.8,2638.4,4.76885996]
[1645353621232,0.94879,2638.8,2638.4,3.7]
[1645353621433,3.5,2638.7,2638.4,3.7]
[1645353621636,0.94879,2638.8,2638.4,3.7]
[1645353621833,3.5,2638.7,2638.4,3.7]
[1645353622033,1.94879,2638.8,2638.4,3.7]
[1645353622235,3.75,2638.7,2638.4,3.7]
[1645353622935,0.25,2638.7,2638.4,3.7]
[1645353623134,3.75,2638.7,2638.4,3.7]
[1645353623335,0.25,2638.7,2638.4,3.7]
[1645353623537,3.75,2638.7,2638.4,3.7]
[1645353623935,0.25,2638.7,2638.4,3.7]
[1645353624134,1.0,2638.6,2638.4,3.7]
[1645353624787,0.25,2638.7,2638.4,3.7]
[1645353628635,0.24844291,2638.7,2638.4,3.7]